bitfinex-derivatives/quotes_BTCF0:USTF0_20241125
["timestamp","ask_amount","ask_price","bid_price","bid_amount"]
[1732570732845,0.34856,94336.0,94335.0,0.05306643]
[1732570733127,0.40155,94336.0,94335.0,7.543e-05]
[1732570733726,0.43335,94336.0,94335.0,7.543e-05]
[1732570735227,0.43335,94336.0,94305.0,0.0150231]
[1732570735228,0.3624,94336.0,94295.0,0.3608]
[1732570735444,0.3608,94309.0,94300.0,0.21022374]
[1732570735624,0.3608,94309.0,94307.0,0.053006]
[1732570736127,0.3608,94309.0,94301.0,7.807e-05]
[1732570736324,0.67875991,94302.0,94301.0,7.807e-05]
[1732570738023,0.67875991,94302.0,94301.0,0.12201601]
[1732570738227,0.3608,94302.0,94301.0,0.12201601]
[1732570738623,0.3608,94309.0,94308.0,0.053006]
[1732570738931,0.3608,94324.0,94308.0,0.053006]
[1732570738932,0.3608,94324.0,94315.0,0.053002]
[1732570739117,0.3608,94316.0,94315.0,0.05310577]
[1732570740733,0.3608,94324.0,94315.0,0.05310577]
[1732570740734,0.3608,94324.0,94315.0,0.22782577]
[1732570741032,0.13253522,94377.0,94315.0,0.22782577]
[1732570741033,0.48619639,94351.0,94336.0,0.05299]
[1732570741239,0.3608,94351.0,94350.0,0.052982]
[1732570741824,0.052986,94344.0,94327.0,0.052995]
[1732570742020,0.3608,94334.0,94332.0,0.052992]
[1732570742336,0.3608,94334.0,94317.0,0.453441]
[1732570742337,0.052999,94321.0,94318.0,0.053]
[1732570742630,0.052999,94321.0,94297.0,0.053012]
[1732570742631,0.3608,94334.0,94333.0,0.052992]
[1732570742824,0.7216,94340.0,94312.0,1.5]
[1732570743025,0.7216,94340.0,94327.0,0.052995]
[1732570743026,0.3608,94328.0,94327.0,0.052995]
[1732570743731,0.3608,94340.0,94339.0,0.052989]
[1732570743935,0.3608,94340.0,94339.0,0.673389]
[1732570744122,0.3608,94340.0,94339.0,0.9204]
[1732570744323,0.3608,94340.0,94339.0,0.973389]
[1732570744528,0.3608,94360.0,94348.0,0.052984]
[1732570744833,0.3608,94360.0,94356.0,0.052979]
[1732570744834,0.31803478,94357.0,94356.0,0.052979]
[1732570745022,0.31803478,94357.0,94356.0,0.227939]
[1732570745425,7.487e-05,94357.0,94356.0,0.227939]
[1732570746032,7.487e-05,94357.0,94356.0,0.17506529]
[1732570746222,7.487e-05,94357.0,94356.0,0.22804429]
[1732570747136,7.487e-05,94357.0,94356.0,0.17530223]
[1732570747433,0.31803478,94357.0,94356.0,0.00010529]
[1732570747735,0.37101378,94357.0,94356.0,0.00010529]
[1732570748326,0.31803478,94357.0,94356.0,0.05308429]
[1732570748530,7.487e-05,94357.0,94356.0,0.22800429]
[1732570748733,0.09406234,94357.0,94356.0,0.05308429]
[1732570748927,0.37101378,94357.0,94356.0,0.05308429]
[1732570749231,0.37101378,94357.0,94356.0,0.22800429]
[1732570749537,0.31803478,94357.0,94329.0,0.031]
[1732570749828,0.3608,94333.0,94332.0,0.052993]
[1732570750033,0.3608,94333.0,94332.0,0.227913]
[1732570750237,0.3608,94333.0,94332.0,0.17492]
[1732570750429,0.3608,94333.0,94332.0,0.227913]
[1732570750632,0.3608,94333.0,94332.0,0.22800103]
[1732570751229,0.12533368,94342.0,94337.0,0.05299]
[1732570751431,0.09400026,94345.0,94344.0,0.052986]
[1732570751827,0.12533368,94354.0,94352.0,0.052981]
[1732570752024,0.44329359,94354.0,94353.0,0.227901]
[1732570752226,0.0316,94356.0,94353.0,0.17492]
[1732570752423,0.0316,94356.0,94355.0,0.05298]
[1732570752632,0.34955991,94356.0,94355.0,0.05298]
[1732570753226,0.34955991,94356.0,94353.0,0.17492]
[1732570753428,0.4120472,94356.0,94355.0,0.05298]
[1732570753937,0.4120472,94356.0,94353.0,0.17492]
[1732570753938,0.05298,94354.0,94353.0,0.2279]
[1732570754539,7.487e-05,94357.0,94353.0,0.17492]
[1732570754730,0.31795991,94355.0,94354.0,0.05298]
[1732570755139,0.37093991,94355.0,94354.0,0.05298]
[1732570755332,0.37093991,94355.0,94354.0,0.2279]
[1732570755638,0.31795991,94355.0,94354.0,0.2279]
[1732570756436,0.31795991,94355.0,94354.0,0.05298]
[1732570756637,0.3194143,94355.0,94354.0,0.2279]
[1732570756831,0.3194143,94355.0,94354.0,0.05298]
[1732570757029,0.3194143,94355.0,94354.0,0.2279]
[1732570757230,0.00145439,94355.0,94354.0,0.2279]
[1732570758129,0.052987,94342.0,94341.0,0.00056]
[1732570758335,0.052987,94342.0,94332.0,8.803e-05]
[1732570758336,0.052992,94333.0,94332.0,8.803e-05]
[1732570758541,0.73175191,94333.0,94332.0,0.05308103]
[1732570758840,0.7332063,94333.0,94332.0,8.803e-05]
[1732570759232,0.85853998,94333.0,94332.0,8.803e-05]
[1732570759429,0.85853998,94333.0,94332.0,0.12205203]
[1732570759631,0.6802143,94333.0,94332.0,0.12205203]
[1732570759831,0.80575416,94333.0,94332.0,0.12205203]
[1732570760040,0.68925416,94333.0,94324.0,0.446]
[1732570760236,0.68925416,94333.0,94301.0,0.00159059]
[1732570760237,0.053001,94318.0,94311.0,0.3608]
[1732570760541,0.45495185,94316.0,94312.0,0.1750432]
[1732570760733,0.053003,94313.0,94312.0,0.0001232]
[1732570760934,0.37096291,94313.0,94312.0,0.1750432]
[1732570761138,0.37096291,94313.0,94312.0,0.0001232]
[1732570761543,0.49648516,94313.0,94312.0,0.0001232]
[1732570761838,0.3194143,94313.0,94312.0,0.0001232]
[1732570762543,0.00145439,94313.0,94309.0,0.1220872]
[1732570762735,0.3608,94310.0,94309.0,0.1220872]
[1732570762938,0.36304715,94310.0,94305.0,0.44536]
[1732570763138,0.09413011,94307.0,94306.0,0.17496]
[1732570763340,0.36304715,94310.0,94306.0,0.17496]
[1732570763539,0.09410653,94307.0,94301.0,0.00159059]
[1732570763733,0.36304715,94310.0,94301.0,0.00159059]
[1732570763734,0.09410653,94305.0,94301.0,0.00159059]
[1732570763934,0.00290921,94303.0,94302.0,0.22805529]
[1732570764541,0.00280391,94303.0,94302.0,0.84617529]
[1732570764741,0.00280391,94303.0,94302.0,0.86112214]
[1732570765345,0.00280391,94303.0,94302.0,0.68616214]
[1732570765553,0.00280391,94303.0,94302.0,0.80811314]
[1732570766547,0.00280391,94303.0,94302.0,1.04944235]
[1732570766741,0.00280391,94303.0,94302.0,0.87448235]
[1732570766939,0.00280391,94303.0,94302.0,1.04944235]
[1732570767144,0.00280391,94303.0,94302.0,0.86112214]
[1732570767448,0.00280391,94303.0,94302.0,0.22805529]
[1732570767841,0.00280391,94303.0,94302.0,0.04809529]
[1732570768043,0.00280391,94303.0,94302.0,0.22305529]
[1732570768547,0.00280391,94303.0,94300.0,0.07234137]
[1732570768747,0.00280391,94303.0,94302.0,0.053009]
[1732570769149,0.00280391,94303.0,94302.0,0.227969]
[1732570769343,0.00280391,94303.0,94302.0,0.17496]
[1732570769647,0.40833128,94303.0,94279.0,0.3608]
[1732570769850,0.3608,94281.0,94279.0,0.00056]
[1732570770147,0.03293339,94281.0,94280.0,0.17496]
[1732570770366,0.03293339,94281.0,94280.0,0.79316]
[1732570770850,0.03719228,94281.0,94280.0,0.61829785]
[1732570771047,0.03719228,94281.0,94280.0,0.84627985]
[1732570771243,0.03719228,94281.0,94280.0,0.51047985]
[1732570771650,0.03719228,94281.0,94280.0,0.45752385]
[1732570771842,0.3608,94294.0,94280.0,1.08350185]
[1732570772039,0.09410653,94303.0,94301.0,0.05301]
[1732570772244,0.09410653,94303.0,94302.0,0.68274]
[1732570772448,0.3608,94305.0,94302.0,0.68274]
[1732570772449,0.3608,94305.0,94303.0,0.053009]
[1732570772852,0.09410653,94315.0,94313.0,0.053003]
[1732570773047,0.09410653,94315.0,94314.0,0.17496]
[1732570773349,0.3608,94316.0,94314.0,0.17496]
[1732570774745,0.3608,94316.0,94314.0,0.175006]
[1732570775754,0.3608,94316.0,94315.0,8.703e-05]
[1732570776243,0.0304,94324.0,94315.0,8.703e-05]
[1732570776449,0.27374073,94322.0,94321.0,0.052999]
[1732570776648,0.3608,94325.0,94323.0,0.052998]
[1732570777053,0.09410653,94340.0,94325.0,0.052997]
[1732570777252,0.00899336,94339.0,94330.0,0.16193283]
[1732570777552,0.3608,94342.0,94330.0,0.46193283]
[1732570777553,0.01608582,94331.0,94330.0,0.46193283]
[1732570777759,0.02507702,94331.0,94330.0,0.72701683]
[1732570778358,0.00145525,94335.0,94334.0,0.052992]
[1732570778545,0.00145525,94335.0,94334.0,1.852992]
[1732570778748,0.00145525,94335.0,94334.0,2.170992]
[1732570778948,0.00145525,94335.0,94334.0,0.052992]
[1732570779347,0.00145525,94335.0,94334.0,0.227392]
[1732570780045,0.00328647,94335.0,94334.0,0.227392]
[1732570780245,0.01247292,94335.0,94334.0,0.227392]
[1732570780650,0.01247292,94335.0,94334.0,0.174436]
[1732570780848,0.01247292,94335.0,94334.0,0.1744]
[1732570781048,0.01247292,94335.0,94334.0,0.227392]
[1732570781251,0.01247292,94335.0,94334.0,0.227352]
[1732570781661,0.01247292,94335.0,94334.0,0.845352]
[1732570781846,0.01247292,94335.0,94334.0,1.20626852]
[1732570782253,0.00328647,94335.0,94334.0,1.20626852]
[1732570782554,0.00328647,94335.0,94334.0,0.58826852]
[1732570782755,0.00328647,94335.0,94334.0,1.03190852]
[1732570782957,0.00328647,94335.0,94334.0,1.20626852]
[1732570783147,0.00328647,94335.0,94334.0,1.39586152]
[1732570783352,0.00328647,94335.0,94334.0,1.20626852]
[1732570783550,0.3608,94354.0,94334.0,1.20626852]
[1732570783753,0.36087487,94357.0,94345.0,0.578447]
[1732570783953,0.00145444,94351.0,94350.0,0.052983]
[1732570784155,0.00145444,94351.0,94350.0,0.498383]
[1732570784453,0.00145444,94351.0,94350.0,0.816343]
[1732570784655,0.00145444,94351.0,94350.0,0.498383]
[1732570784859,0.00145444,94351.0,94350.0,0.990703]
[1732570785054,0.00145444,94351.0,94350.0,0.672743]
[1732570785366,0.00145444,94351.0,94350.0,0.990703]
[1732570785746,0.00145444,94351.0,94350.0,0.672743]
[1732570785950,0.00145444,94351.0,94350.0,1.00990655]
[1732570786255,0.00145444,94351.0,94350.0,0.69194655]
[1732570786453,0.00145444,94351.0,94350.0,0.672743]
[1732570786850,0.00145444,94351.0,94350.0,0.61976]
[1732570787051,0.00145444,94351.0,94350.0,0.672743]
[1732570787360,0.10145444,94351.0,94350.0,0.672743]
[1732570787861,0.10145444,94351.0,94350.0,0.498383]
[1732570788057,0.10145444,94351.0,94350.0,0.672743]
[1732570789153,0.10224357,94351.0,94350.0,0.672743]
[1732570789750,0.10290872,94351.0,94350.0,0.672743]
[1732570789960,0.10290872,94351.0,94350.0,0.619787]
[1732570791059,0.19890872,94351.0,94350.0,0.619787]
[1732570792255,0.2003652,94351.0,94350.0,0.619787]
[1732570792880,0.2003652,94351.0,94350.0,0.566831]
[1732570794861,0.2964652,94351.0,94350.0,0.566831]
[1732570795362,0.2964652,94351.0,94350.0,0.392471]
[1732570795758,0.2964652,94351.0,94350.0,0.566791]
[1732570795958,0.2964652,94351.0,94350.0,0.339515]
[1732570796158,0.2964652,94351.0,94333.0,0.3608]
[1732570796159,0.052987,94342.0,94338.0,0.17432]
[1732570796363,0.56584073,94339.0,94338.0,0.17432]
[1732570796563,0.56584073,94339.0,94334.0,0.00011652]
[1732570796767,0.27374073,94335.0,94334.0,0.00011652]
[1732570796962,0.56584073,94335.0,94334.0,0.17443652]
[1732570797161,0.57108993,94335.0,94334.0,0.17443652]
[1732570798970,0.2973492,94335.0,94334.0,0.12148052]
[1732570799169,0.2973492,94335.0,94334.0,0.42148052]
[1732570799467,0.385519,94335.0,94334.0,0.42148052]
[1732570799969,0.385519,94335.0,94334.0,0.4216007]
[1732570800862,0.385519,94335.0,94334.0,0.1216007]
[1732570801062,0.65925973,94335.0,94334.0,0.00012018]
[1732570801266,0.72981573,94335.0,94330.0,0.00064]
[1732570801466,0.32673573,94328.0,94327.0,0.12432]
[1732570801765,0.70700553,94328.0,94327.0,0.07432]
[1732570801967,0.70700553,94328.0,94327.0,0.021364]
[1732570801968,0.72456653,94328.0,94327.0,0.021364]
[1732570802160,0.82246578,94328.0,94327.0,0.052996]
[1732570802363,0.65925973,94328.0,94327.0,0.22742536]
[1732570802870,0.75925973,94328.0,94327.0,0.22742536]
[1732570803571,0.75925973,94328.0,94327.0,0.22298536]
[1732570803874,0.75925973,94328.0,94327.0,0.05310536]
[1732570804075,0.485519,94328.0,94327.0,0.22298536]
[1732570804262,0.485519,94328.0,94327.0,0.28558536]
[1732570804263,0.22285071,94328.0,94327.0,0.28558536]
[1732570804464,0.22285071,94328.0,94327.0,0.90362536]
[1732570804766,0.22285071,94328.0,94327.0,2.40362536]
[1732570804767,0.21213749,94328.0,94327.0,2.40362536]
[1732570804972,0.21213749,94328.0,94327.0,2.10362536]
[1732570805163,0.21213749,94328.0,94327.0,2.40362536]
[1732570805472,0.09410653,94352.0,94327.0,2.80342536]
[1732570805671,0.48639564,94357.0,94350.0,0.052983]
[1732570805672,0.09428026,94356.0,94350.0,0.052983]
[1732570805862,0.09428026,94356.0,94350.0,0.222863]
[1732570806061,0.63454073,94351.0,94350.0,0.222863]
[1732570806675,0.09428026,94356.0,94355.0,0.05298]
[1732570806860,0.1,94356.0,94355.0,0.05298]
[1732570807065,0.4608,94356.0,94355.0,0.05298]
[1732570807765,0.1,94356.0,94355.0,0.05307981]
[1732570807976,0.1,94356.0,94355.0,9.981e-05]
[1732570807977,0.37374073,94356.0,94355.0,9.981e-05]
[1732570808177,0.37374073,94356.0,94349.0,0.00056]
[1732570808178,0.052983,94350.0,94349.0,0.00056]
[1732570808471,0.052984,94347.0,94346.0,0.16988]
[1732570808661,0.532516,94350.0,94342.0,0.16988]
[1732570808861,0.61793274,94343.0,94340.0,0.16179121]
[1732570809176,0.4608,94343.0,94342.0,0.052987]
[1732570809368,0.1,94343.0,94342.0,0.052987]
[1732570809572,0.1,94343.0,94342.0,0.086187]
[1732570809769,0.12573237,94353.0,94342.0,0.72266528]
[1732570809961,0.3608,94358.0,94356.0,0.052979]
[1732570810163,0.3608,94364.0,94356.0,0.668219]
[1732570810365,0.3608,94364.0,94356.0,0.498339]
[1732570810570,0.05943376,94357.0,94356.0,0.668219]
[1732570810879,0.12573237,94373.0,94372.0,0.05297]
[1732570811065,0.12573237,94373.0,94372.0,0.22285]
[1732570811265,0.15713274,94387.0,94372.0,0.22285]
[1732570811266,0.12573237,94385.0,94372.0,0.16988]
[1732570811467,0.15713274,94391.0,94389.0,0.052961]
[1732570811673,0.27374073,94390.0,94387.0,0.44532]
[1732570811870,0.27374073,94390.0,94388.0,0.22297129]
[1732570812082,0.12583432,94389.0,94388.0,0.17001029]
[1732570812370,0.34429673,94389.0,94388.0,0.17001029]
[1732570813675,0.47002977,94389.0,94388.0,0.17001029]
[1732570813875,0.34429673,94389.0,94388.0,0.17001029]
[1732570814068,0.24971401,94364.0,94350.0,0.60707121]
[1732570814274,0.24971401,94355.0,94354.0,0.05298]
[1732570814570,0.3608,94356.0,94351.0,0.16988]
[1732570814571,0.24971401,94354.0,94351.0,0.16988]
[1732570814875,0.3608,94352.0,94351.0,0.16988]
[1732570815073,0.3608,94352.0,94351.0,7.766e-05]
[1732570815074,0.61051401,94352.0,94351.0,7.766e-05]
[1732570815277,0.73621017,94352.0,94351.0,0.16995766]
[1732570815462,0.83521017,94352.0,94351.0,0.16995766]
[1732570815665,0.70951401,94352.0,94351.0,0.16995766]
[1732570815871,0.83514861,94352.0,94351.0,0.16995766]
[1732570816079,0.4598,94352.0,94351.0,0.16995766]
[1732570816369,0.70951401,94352.0,94351.0,7.766e-05]
[1732570816576,0.70951401,94352.0,94351.0,0.16995766]
[1732570817272,0.83514861,94352.0,94351.0,0.11700166]
[1732570817474,0.70951401,94352.0,94351.0,0.11700166]
[1732570817672,0.83518012,94352.0,94351.0,0.11700166]
[1732570817974,0.4598,94352.0,94351.0,0.11700166]
[1732570818277,0.4598,94352.0,94351.0,0.17616915]
[1732570819464,0.70951401,94352.0,94351.0,0.00012915]
[1732570819672,0.78007001,94352.0,94351.0,0.00012915]
[1732570819863,0.78007001,94352.0,94332.0,0.00158988]
[1732570819864,0.052985,94345.0,94332.0,0.00158988]
[1732570820069,0.052985,94345.0,94319.0,0.01859034]
[1732570820070,0.61051401,94333.0,94328.0,0.052995]
[1732570820269,0.24971401,94330.0,94319.0,0.01859034]
[1732570820578,0.099,94320.0,94319.0,0.053]
[1732570820776,0.099,94320.0,94319.0,0.22904]
[1732570820974,0.099,94320.0,94319.0,0.22912455]
[1732570821475,0.099,94320.0,94319.0,0.05308455]
[1732570821867,0.099,94320.0,94319.0,0.22912455]
[1732570822179,0.099,94320.0,94319.0,0.25032624]
[1732570822674,0.099,94320.0,94319.0,0.30928493]
[1732570822896,0.3608,94333.0,94319.0,0.25032624]
[1732570823080,0.12566611,94343.0,94341.0,0.052991]
[1732570823374,0.32027001,94343.0,94342.0,0.123084]
[1732570823578,0.32027001,94343.0,94342.0,0.17604]
[1732570823579,0.070556,94343.0,94342.0,0.17604]
[1732570823777,0.32027001,94343.0,94342.0,0.17604]
[1732570824279,0.3608,94344.0,94342.0,0.052991]
[1732570824473,0.3608,94344.0,94343.0,0.17604]
[1732570824780,0.7216,94344.0,94343.0,0.62136]
[1732570824979,0.3608,94353.0,94352.0,0.052985]
[1732570825974,0.68107001,94353.0,94352.0,0.052985]
[1732570826176,0.68107001,94353.0,94343.0,2.12149169]
[1732570826371,0.3608,94344.0,94343.0,2.12152569]
[1732570826573,0.3608,94344.0,94343.0,0.62152569]
[1732570827077,0.40213291,94344.0,94343.0,0.62152569]
[1732570827980,0.40213291,94344.0,94343.0,0.67448169]
[1732570828372,0.40213291,94344.0,94343.0,0.49844169]
[1732570828573,0.72240292,94344.0,94343.0,0.44545169]
[1732570828773,0.72240292,94344.0,94343.0,0.62149169]
[1732570829474,0.72240292,94344.0,94343.0,0.39249569]
[1732570829676,0.72240292,94344.0,94343.0,0.56853569]
[1732570830079,0.03339779,94346.0,94343.0,1.586204]
[1732570830411,0.3608,94373.0,94343.0,1.586204]
[1732570830412,0.070556,94355.0,94344.0,0.17612381]
[1732570830580,0.0636,94353.0,94344.0,0.17612381]
[1732570830772,0.070556,94355.0,94344.0,0.17612381]
[1732570830773,0.24971401,94347.0,94344.0,0.17612381]
[1732570830972,0.24971401,94347.0,94345.0,0.052989]
[1732570832071,0.3608,94359.0,94345.0,0.052989]
[1732570832274,0.24971401,94346.0,94345.0,0.052989]
[1732570832483,0.24971401,94346.0,94344.0,0.17612381]
[1732570832484,0.24971401,94346.0,94344.0,8.381e-05]
[1732570832675,0.67401401,94345.0,94344.0,8.381e-05]
[1732570833077,0.74457001,94345.0,94344.0,8.381e-05]
[1732570833278,0.494856,94345.0,94322.0,0.1971961]
[1732570833474,0.3608,94329.0,94323.0,0.17604]
[1732570833685,0.053,94326.0,94323.0,0.17604]
[1732570833880,0.431356,94329.0,94323.0,0.17604]
[1732570834278,0.052999,94327.0,94324.0,9.901e-05]
[1732570834478,0.371039,94327.0,94324.0,9.901e-05]
[1732570834688,0.388596,94327.0,94324.0,9.901e-05]
[1732570835081,0.070556,94327.0,94324.0,9.901e-05]
[1732570835289,0.070556,94327.0,94306.0,0.05032905]
[1732570835290,0.15713274,94325.0,94293.0,0.17604]
[1732570835480,0.3608,94315.0,94310.0,0.16179121]
[1732570835784,0.0321,94324.0,94323.0,0.053001]
[1732570836187,0.36212,94329.0,94323.0,8.037e-05]
[1732570836381,0.15674198,94336.0,94323.0,8.037e-05]
[1732570836575,0.3608,94334.0,94333.0,0.052996]
[1732570836879,0.3608,94334.0,94332.0,0.17604]
[1732570837083,0.3608,94334.0,94332.0,0.229036]
[1732570837384,0.3608,94334.0,94332.0,0.17604]
[1732570837586,0.3608,94334.0,94323.0,8.037e-05]
[1732570837783,0.3608,94324.0,94323.0,8.037e-05]
[1732570838282,0.67884,94324.0,94323.0,8.037e-05]
[1732570838484,0.67884,94324.0,94309.0,0.18232]
[1732570838485,0.71144,94324.0,94309.0,0.18232]
[1732570838683,0.413809,94310.0,94304.0,0.053012]
[1732570838986,0.0313,94309.0,94304.0,0.235332]
[1732570839585,0.0313,94309.0,94305.0,0.00013491]
[1732570839979,0.0313,94309.0,94306.0,0.18232]
[1732570840487,0.084309,94309.0,94307.0,0.18236]
[1732570841189,0.0313,94309.0,94307.0,0.18236]
[1732570841380,0.053011,94306.0,94305.0,0.00013491]
[1732570841578,0.0313,94309.0,94303.0,0.12953891]
[1732570841782,0.053012,94305.0,94303.0,0.12953891]
[1732570842587,0.053012,94305.0,94304.0,0.00013251]
[1732570844684,0.053012,94305.0,94299.0,0.18236]
[1732570844685,0.0313,94309.0,94299.0,0.18236]
[1732570844992,0.3608,94300.0,94299.0,0.053015]
[1732570845290,0.3608,94300.0,94299.0,0.235375]
[1732570845684,0.3608,94300.0,94299.0,0.23548516]
[1732570847183,0.3608,94300.0,94299.0,0.05312516]
[1732570847390,0.3608,94300.0,94299.0,0.00011016]
[1732570847593,0.413814,94300.0,94297.0,0.12951416]
[1732570847884,0.413814,94300.0,94295.0,0.05460746]
[1732570848095,0.413814,94300.0,94296.0,0.235376]
[1732570848896,0.413814,94300.0,94297.0,0.00011108]
[1732570849199,0.3608,94300.0,94299.0,0.053015]
[1732570850294,0.3608,94300.0,94299.0,0.235415]
[1732570850682,0.3608,94300.0,94299.0,0.1824]
[1732570850886,0.3608,94300.0,94299.0,0.235415]
[1732570851287,0.3608,94300.0,94297.0,0.00011108]
[1732570851995,0.3608,94300.0,94299.0,0.053015]
[1732570853098,0.3608,94300.0,94299.0,0.1824]
[1732570853497,0.413814,94300.0,94299.0,0.1824]
[1732570853799,0.413814,94300.0,94299.0,0.129444]
[1732570854186,0.413814,94300.0,94297.0,0.00011108]
[1732570854393,0.413814,94300.0,94297.0,0.05312708]
[1732570854794,0.0333,94299.0,94297.0,0.05312708]
[1732570854993,0.0333,94299.0,94297.0,0.00011108]
[1732570855195,0.3608,94310.0,94299.0,0.053015]
[1732570855409,0.3608,94310.0,94300.0,0.16179121]
[1732570855703,0.3608,94310.0,94301.0,0.0316]
[1732570856688,0.3608,94310.0,94309.0,5.3e-05]
[1732570856895,0.3608,94310.0,94309.0,0.1824]
[1732570857092,0.3608,94310.0,94309.0,0.235409]
[1732570857300,0.3108,94310.0,94309.0,0.25473342]
[1732570857804,0.3608,94326.0,94309.0,0.25473342]
[1732570857994,0.3608,94326.0,94325.0,0.053]
[1732570858197,0.7216,94326.0,94325.0,0.2354]
[1732570858390,0.7216,94326.0,94310.0,0.053008]
[1732570858391,0.053003,94320.0,94310.0,0.053008]
[1732570858589,0.3608,94315.0,94314.0,0.053006]
[1732570859102,0.3608,94326.0,94309.0,0.1824]
[1732570859304,0.3608,94326.0,94325.0,0.053]
[1732570859500,0.3608,94326.0,94325.0,0.2354]
[1732570859706,0.3608,94337.0,94336.0,0.052994]
[1732570860206,0.0309,94347.0,94327.0,0.16179121]
[1732570860395,0.15669431,94355.0,94349.0,0.052987]
[1732570860593,7.691e-05,94355.0,94349.0,0.235387]
[1732570861394,7.691e-05,94355.0,94328.0,0.06632512]
[1732570861395,1.03956,94350.0,94342.0,0.18236]
[1732570861596,0.052993,94339.0,94335.0,0.18236]
[1732570861797,0.51751207,94336.0,94335.0,0.18236]
[1732570862094,0.3608,94336.0,94335.0,0.18236]
[1732570862300,0.41233417,94336.0,94335.0,0.18236]
[1732570862497,0.41233417,94336.0,94320.0,0.00056]
[1732570862498,0.73033417,94336.0,94320.0,0.00056]
[1732570862807,0.73033417,94336.0,94278.0,0.37664043]
[1732570862808,0.3608,94321.0,94305.0,0.02249586]
[1732570863002,0.15687291,94311.0,94305.0,0.02249586]
[1732570863200,0.3608,94306.0,94305.0,0.02249586]
[1732570863503,0.3608,94306.0,94305.0,0.20496942]
[1732570863909,0.1569586,94309.0,94305.0,0.18247356]
[1732570864095,0.34520609,94315.0,94314.0,0.053006]
[1732570864296,0.1569586,94318.0,94317.0,0.053005]
[1732570864497,0.51777809,94321.0,94318.0,0.053004]
[1732570864805,0.15697809,94320.0,94318.0,0.053004]
[1732570865008,0.3608,94321.0,94318.0,0.053004]
[1732570865009,0.51777809,94321.0,94318.0,0.053004]
[1732570865206,0.51777809,94321.0,94319.0,0.053003]
[1732570865407,0.51777809,94321.0,94320.0,0.053003]
[1732570865613,0.3608,94321.0,94320.0,0.053003]
[1732570866001,0.3608,94321.0,94318.0,0.001]
[1732570866203,0.3608,94321.0,94320.0,0.053003]
[1732570866499,0.3608,94321.0,94320.0,0.054003]
[1732570866727,0.774602,94321.0,94320.0,0.001]
[1732570866902,1.14422475,94321.0,94302.0,0.18236]
[1732570867108,0.3608,94306.0,94302.0,0.18236]
[1732570867413,0.41234275,94306.0,94304.0,0.18224]
[1732570867605,0.41234275,94306.0,94297.0,0.053016]
[1732570867925,0.44264275,94306.0,94305.0,0.18235356]
[1732570868114,0.63093575,94306.0,94305.0,0.18235356]
[1732570868415,0.63093575,94306.0,94305.0,0.00011356]
[1732570868605,0.44265203,94306.0,94305.0,0.00011356]
[1732570869005,0.45193067,94306.0,94300.0,0.09625248]
[1732570869213,0.2492128,94305.0,94302.0,0.053013]
[1732570869407,0.06083067,94304.0,94302.0,0.053013]
[1732570869609,0.06083067,94303.0,94295.0,0.00159046]
[1732570869916,0.00927864,94302.0,94301.0,0.053014]
[1732570870119,0.54961522,94306.0,94296.0,0.18235794]
[1732570870120,0.36232,94306.0,94296.0,0.18235794]
[1732570870307,0.3608,94306.0,94305.0,0.053011]
[1732570870627,0.36992305,94306.0,94305.0,0.053011]
[1732570871120,0.36981779,94306.0,94305.0,0.053011]
[1732570872125,0.3608,94306.0,94297.0,0.0302]
[1732570872416,0.3608,94306.0,94305.0,0.001]
[1732570873012,0.36989196,94306.0,94305.0,0.001]
[1732570873910,0.3608,94306.0,94305.0,0.001]
[1732570875017,0.3608,94306.0,94302.0,0.130324]
[1732570875222,0.3608,94306.0,94303.0,0.053012]
[1732570875826,0.3608,94306.0,94302.0,0.130324]
[1732570876025,0.3608,94306.0,94304.0,0.053012]
[1732570877945,0.3608,94306.0,94304.0,0.054012]
[1732570878817,0.0027,94317.0,94304.0,0.054012]
[1732570879012,0.0027,94323.0,94321.0,0.053002]
[1732570879225,0.15699522,94333.0,94331.0,0.052997]
[1732570879526,0.02168554,94339.0,94338.0,0.052993]
[1732570879725,0.38248554,94339.0,94338.0,0.235273]
[1732570880220,0.02168554,94339.0,94338.0,0.235273]
[1732570880727,0.00422,94351.0,94338.0,0.235273]
[1732570881022,0.3608,94347.0,94339.0,0.052992]
[1732570881217,0.3608,94347.0,94338.0,0.129324]
[1732570881422,0.3608,94339.0,94331.0,0.18228]
[1732570881618,0.3608,94339.0,94324.0,0.3608]
[1732570881619,0.0746,94338.0,94329.0,0.18228]
[1732570881817,0.0746,94338.0,94330.0,0.052997]
[1732570881818,0.3608,94331.0,94330.0,0.052997]
[1732570882126,0.36982612,94331.0,94330.0,0.052997]
[1732570882622,0.36982612,94331.0,94329.0,0.18228]
[1732570882826,0.00902612,94330.0,94329.0,0.235278]
[1732570883936,0.0027,94343.0,94342.0,0.052991]
[1732570884131,0.00934454,94343.0,94342.0,0.052991]
[1732570884430,0.00924749,94343.0,94325.0,0.0333]
[1732570884618,0.3608,94336.0,94330.0,0.001]
[1732570884823,0.3608,94336.0,94330.0,0.053997]
[1732570884824,0.00924749,94335.0,94330.0,0.053997]
[1732570885134,0.00924749,94334.0,94332.0,0.02913925]
[1732570885331,0.00924749,94333.0,94332.0,0.02913925]
[1732570886429,0.00924749,94333.0,94332.0,0.03013925]
[1732570886629,0.00924749,94333.0,94332.0,0.001]
[1732570886827,0.00924749,94333.0,94332.0,0.053996]
[1732570887225,0.00924749,94333.0,94331.0,0.18224]
[1732570887419,0.00924749,94332.0,94331.0,0.235237]
[1732570888028,0.00924749,94332.0,94331.0,0.18224]
[1732570888029,0.00903694,94332.0,94331.0,0.18224]
[1732570888232,0.00903694,94332.0,94331.0,0.235237]
[1732570888433,0.00903694,94332.0,94331.0,0.236237]
[1732570888931,0.00903694,94332.0,94331.0,0.235237]
[1732570889125,0.00903694,94332.0,94331.0,0.236237]
[1732570889324,0.00903694,94332.0,94331.0,0.554277]
[1732570890138,0.3608,94345.0,94342.0,3.4e-05]
[1732570890327,0.3608,94345.0,94343.0,0.23523]
[1732570890521,0.3608,94345.0,94344.0,0.18224]
[1732570890724,0.3608,94345.0,94331.0,0.001]
[1732570890922,0.3608,94333.0,94331.0,0.001]
[1732570891333,0.371036,94332.0,94331.0,0.001]
[1732570891535,0.35774,94332.0,94324.0,0.18224]
[1732570891839,0.3608,94325.0,94322.0,8.284e-05]
[1732570892630,0.48597654,94325.0,94305.0,0.44544]